Workbook

Sheet MSU
B1: Sami Lumiovaara | E1: 29.3.1973
B2: SUPERPESIS | E2: Runkosarja | I2: Kärkilyönnit (KL), pesänvälit | P2: Runkosarja TOP-30 | U2: Alempi loppusarja | AB2: Ylempi loppusarja TOP-10 | AG2: Play off, voitot, voittoprosentti | AL2: Arvo-ottelut | AO2: Mitalit
B3: Vuosi | C3: Sija | D3: Seura | E3: OTT | F3: KUN | G3: LÖI | H3: TOI | I3: KL | J3: 0 > 1 | K3: 1 > 2 | L3: 2 > 3 | M3: 3 > k | N3: KL-% | P3: LÖI | Q3: TOI | R3: L+T | S3: KL | U3: OTT | V3: KUN | W3: LÖI | X3: TOI | Y3: KL | Z3: KL-% | AB3: LÖI | AC3: TOI | AD3: L+T | AE3: KL | AG3: Puolivälierät | AH3: Välierät | AI3: Pronssi | AJ3: Finaalit | AL3: IL | AM3: LL | AN3: hSM | AO3: K | AP3: H | AQ3: P
B4: 1992 | C4: 4. | D4: RPL 2 | F4: ykköspesis | AA4: 0
B5: 1993 | C5: 6. | D5: RPL | E5: 2 | F5: 0 | G5: 0 | H5: 0 | I5: 5 | J5: 0 | K5: 1 | L5: 4 | M5: 0 | N5: 71.4 % | U5: 1 | V5: 0 | W5: 0 | X5: 0 | Y5: 0 | Z5: 0.0 % | AA5: 0 | AG5: 0-3 IPV
B6: 1994 | C6: 12. | D6: RPL | E6: 1 | F6: 0 | G6: 0 | H6: 0 | I6: 2 | J6: 2 | K6: 0 | L6: 0 | M6: 0 | N6: 66.7 % | U6: 10 | V6: 0 | W6: 3 | X6: 4 | Y6: 21 | Z6: 41.2 % | AA6: 0
B7: 1995 | C7: 14. | D7: RPL-R | E7: 16 | F7: 0 | G7: 3 | H7: 4 | I7: 23 | J7: 10 | K7: 5 | L7: 5 | M7: 3 | N7: 39.7 %
B8: 1996 | C8: 4. | D8: RPL-R | F8: ykköspesis | AA8: 0
B9: 1997 | C9: 9. | D9: RPL-R | F9: ykköspesis | AA9: 0
B10: 1998 | C10: 12. | D10: Puhti | F10: ykköspesis | AA10: 66
B11: 1999 | C11: 14. | D11: Puhti | F11: ykköspesis
B12: 2000 | C12: 1. | D12: KiPe | F12: ykköspesis | U12: 7 | V12: 1 | W12: 0 | X12: 2 | Y12: 23 | Z12: 51.1 %
B13: 2001 | C13: 2. | D13: KiPe | F13: ykköspesis | U13: 2 | V13: 0 | W13: 0 | X13: 0 | Y13: 5 | Z13: 55.6 % | AA13: 0
B14: 2002 | C14: 2. | D14: RiiPe | F14: suomensarja | AA14: 0
B15: Yhteensä | E15: 19 | F15: 0 | G15: 3 | H15: 4 | I15: 30 | J15: 12 | K15: 6 | L15: 9 | M15: 3 | N15: 44.1 % | P15: 0-0-0 | Q15: 0-0-0 | R15: 0-0-0 | S15: 0-0-0 | U15: 19 | V15: 1 | W15: 3 | X15: 6 | Y15: 49 | Z15: 46.7 % | AA15: =SUM(AA3:AA14) -> 66 | AB15: 0-0-0 | AC15: 0-0-0 | AD15: 0-0-0 | AE15: 0-0-0 | AG15: 0/1 | AH15: 0/0 | AI15: 0/0 | AJ15: 0/0 | AL15: =SUM(AL4:AL14) -> 0 | AM15: 0 | AN15: 0 | AO15: 0 | AP15: 0 | AQ15: 0
AG16: 0.0 % | AH16: 0.0 % | AI16: 0.0 % | AJ16: 0.0 %
B17: Pesispörssi | D17: 22.3
B19: URA SUPERISSA | E19: OTT | F19: KUN | G19: LÖI | H19: TOI | I19: KL | K19: ka/L | L19: ka/T | M19: ka/KL | N19: KL-% | P19: ENSIMMÄISET RUNKOSARJASSA | AG19: ENSIMMÄISET PUDOTUSPELEISSÄ | AL19: YLEISÖ
B20: Runkosarja | E20: 19 | F20: 0 | G20: 3 | H20: 4 | I20: 30 | K20: 0.16 | L20: 0.21 | M20: 1.58 | N20: 44.1 % | P20: Ottelu | R20: 15.07. 1993 AA - RPL 5-1 | AA20: 1. ottelu | AD20: 20 v 3 kk 16 pv | AG20: Ottelu | AH20: 1. 22.08. 1993 IPV - RPL 10-9 | AL20: 1743 | AN20: 20 v 4 kk 24 pv
B21: Ylempi loppusarja | E21: 1 | F21: 0 | G21: 0 | H21: 0 | I21: 0 | K21: 0.00 | L21: 0.00 | M21: 0.00 | N21: 0.0 % | P21: Lyöty | R21: 15.06. 1995 RPL - Tahko 0-2 (5-11, 4-5) | AA21: 18. ottelu | AD21: 22 v 2 kk 17 pv | AG21: Lyöty
B22: Alempi loppusarja | E22: 19 | F22: 1 | G22: 3 | H22: 6 | I22: 49 | K22: 0.21 | L22: 0.32 | M22: 2.58 | N22: 46.7 % | P22: Tuotu | R22: 23.07. 1995 RPL - ViVe 2-0 (5-4, 12-2) | AA22: 26. ottelu | AD22: 22 v 3 kk 24 pv | AG22: Tuotu
B23: KAIKKI | E23: 39 | F23: 1 | G23: 6 | H23: 10 | I23: 79 | K23: 0.18 | L23: 0.26 | M23: 2.03 | N23: 44.9 % | P23: Kunnari | R23: 26.08. 2000 HP-K - KiPe 2-1 (0-2, 2-0, 2-1) | AA23: 34. ottelu | AD23: 27 v 2 kk 28 pv | AG23: Kunnari
B25: Seurat | D25: RPL = Riihimäen Pallonlyöjät (1924)
D26: RPL-R = RPL-Riihimäki (1994)
D27: Puhti = Kuusankosken Puhti (1910)
D28: KiPe = Kinnarin Pesis (1998)
D29: RiiPe = Riihi-Pesis (1999)

Sheet MYP, MSS
B1: Sami Lumiovaara | E1: 29.3.1973
B2: YKKÖSPESIS | E2: Runkosarja | L2: Runkosarja TOP-10 | Q2: Jatkosarjat | X2: SUOMENSARJA | AA2: Runkosarja | AH2: Runkosarja TOP-10 | AM2: Jatkosarjat
B3: Vuosi | C3: Sija | D3: Seura | E3: OTT | F3: KUN | G3: LÖI | H3: TOI | I3: KL | J3: KL-% | L3: LÖI | M3: TOI | N3: L+T | O3: KL | Q3: OTT | R3: KUN | S3: LÖI | T3: TOI | U3: KL | V3: KL-% | X3: Vuosi | Y3: Sija | Z3: Seura | AA3: OTT | AB3: KUN | AC3: LÖI | AD3: TOI | AE3: KL | AF3: KL-% | AH3: LÖI | AI3: TOI | AJ3: L+T | AK3: KL | AM3: OTT | AN3: KUN | AO3: LÖI | AP3: TOI | AQ3: KL | AR3: KL-%
B4: 1992 | C4: 4. | D4: RPL 2 | E4: 6 | F4: 0 | G4: 0 | H4: 3
B6: 1996 | C6: 4. | D6: RPL-R | E6: 25 | F6: 0 | G6: 9 | H6: 8 | I6: 52
B7: 1997 | C7: 9. | D7: RPL-R | E7: 24 | F7: 1 | G7: 5 | H7: 8 | I7: 65
B8: 1998 | C8: 12. | D8: Puhti | E8: 23 | F8: 0 | G8: 6 | H8: 21 | I8: 80
B9: 1999 | C9: 14. | D9: Puhti
B10: 2000 | C10: 1. | D10: KiPe | E10: 25 | F10: 0 | G10: 10 | H10: 7 | I10: 91 | J10: 61.5 % | K10: 148
B11: 2001 | C11: 2. | D11: KiPe | E11: 22 | F11: 2 | G11: 8 | H11: 10 | I11: 55 | J11: 52.9 % | K11: 104
X12: 2002 | Y12: 2. | Z12: RiiPe | AA12: 17 | AB12: 0 | AC12: 3 | AD12: 7 | AE12: 40 | AF12: 51.9 % | AG12: 77 | AM12: 4 | AN12: 0 | AO12: 5 | AP12: 0 | AQ12: 10 | AR12: 43.5 % | AS12: 23
B13: YHTEENSÄ | E13: =SUM(E4:E12) -> 125 | F13: =SUM(F4:F12) -> 3 | G13: =SUM(G4:G12) -> 38 | H13: =SUM(H4:H12) -> 57 | I13: =SUM(I4:I12) -> 343 | J13: 0.0 % | K13: =SUM(K4:K12) -> 252 | Q13: =SUM(Q4:Q12) -> 0 | R13: =SUM(R4:R12) -> 0 | S13: =SUM(S4:S12) -> 0 | T13: =SUM(T4:T12) -> 0 | U13: =SUM(U4:U12) -> 0 | V13: 0.0 % | W13: =SUM(W4:W12) -> 0 | X13: YHTEENSÄ | AA13: =SUM(AA4:AA12) -> 17 | AB13: =SUM(AB4:AB12) -> 0 | AC13: =SUM(AC4:AC12) -> 3 | AD13: =SUM(AD4:AD12) -> 7 | AE13: =SUM(AE4:AE12) -> 40 | AF13: =PRODUCT(AE13/AG13) -> 51.9 % | AG13: =SUM(AG4:AG12) -> 77 | AM13: =SUM(AM4:AM12) -> 4 | AN13: =SUM(AN4:AN12) -> 0 | AO13: =SUM(AO4:AO12) -> 5 | AP13: =SUM(AP4:AP12) -> 0 | AQ13: =SUM(AQ4:AQ12) -> 10 | AR13: =PRODUCT(AQ13/AS13) -> 43.5 % | AS13: =SUM(AS4:AS12) -> 23
B15: KAIKKI OTTELUT | E15: OTT | F15: KUN | G15: LÖI | H15: TOI | I15: KL | J15: KL-% | L15: ka/L | M15: ka/T | N15: ka/l+t | O15: ka/kl | R15: Seurat | T15: RPL = Riihimäen Pallonlyöjät (1924)
B16: SUPERPESIS | E16: 39 | F16: 1 | G16: 6 | H16: 10 | I16: 79 | J16: 44.9 % | K16: =PRODUCT(I16/J16) -> 175.9465479 | L16: =PRODUCT((F16+G16)/E16) -> 0.18 | M16: =PRODUCT(H16/E16) -> 0.26 | N16: =PRODUCT((F16+G16+H16)/E16) -> 0.44 | O16: =PRODUCT(I16/E16) -> 2.03 | T16: RPL-R = RPL-Riihimäki (1994)
B17: YKKÖSPESIS | E17: =PRODUCT(E13+Q13) -> 125 | F17: =PRODUCT(F13+R13) -> 3 | G17: =PRODUCT(G13+S13) -> 38 | H17: =PRODUCT(H13+T13) -> 57 | I17: =PRODUCT(I13+U13) -> 343 | K17: =PRODUCT(K13+W13) -> 252 | L17: =PRODUCT((F17+G17)/E17) -> 0.33 | M17: =PRODUCT(H17/E17) -> 0.46 | N17: =PRODUCT((F17+G17+H17)/E17) -> 0.78 | O17: 2.88 | T17: Puhti = Kuusankosken Puhti (1910)
B18: SUOMENSARJA | E18: =PRODUCT(AA13+AM13) -> 21 | F18: =PRODUCT(AB13+AN13) -> 0 | G18: =PRODUCT(AC13+AO13) -> 8 | H18: =PRODUCT(AD13+AP13) -> 7 | I18: =PRODUCT(AE13+AQ13) -> 50 | J18: =PRODUCT(I18/K18) -> 50.0 % | K18: =PRODUCT(AG13+AS13) -> 100 | L18: =PRODUCT((F18+G18)/E18) -> 0.38 | M18: =PRODUCT(H18/E18) -> 0.33 | N18: =PRODUCT((F18+G18+H18)/E18) -> 0.71 | O18: =PRODUCT(I18/E18) -> 2.38 | T18: KiPe = Kinnarin Pesis (1998)
B19: YHTEENSÄ | E19: =SUM(E16:E18) -> 185 | F19: =SUM(F16:F18) -> 4 | G19: 52 | H19: 74 | I19: 472 | K19: =SUM(K16:K18) -> 527.9465479 | L19: =PRODUCT((F19+G19)/E19) -> 0.30 | M19: =PRODUCT(H19/E19) -> 0.40 | N19: =PRODUCT((F19+G19+H19)/E19) -> 0.70 | O19: 2.64 | T19: RiiPe = Riihi-Pesis (1999)

Sheet Arvo-ottelut
B1: ITÄ - LÄNSI - KORTTI
B2: Sami Lumiovaara | C2: 29.3.1973
B3: C - POJAT | C3: Itä - Länsi, tulos | D3: Joukkue | E3: Seura | G3: V | H3: T | I3: H | J3: Up. | K3: Lj. | L3: Palk. | M3: O | N3: K | O3: L | P3: T | Q3: KL | R3: 1 | S3: 2 | T3: 3 | U3: k | V3: KL-% | W3: Pelinjohtaja | X3: Yleisöä
B4: 17.06. 1988 Kannus | C4: 17-10 | D4: Länsi | E4: RPL | I4: 1 | M4: 1 | P4: 2 | W4: Pekka Huovinen | X4: 500
B6: B-POJAT | C6: Itä - Länsi, tulos | D6: Joukkue | E6: Seura | G6: V | H6: T | I6: H | J6: Up. | K6: Lj. | L6: Palk. | M6: O | N6: K | O6: L | P6: T | Q6: KL | R6: 1 | S6: 2 | T6: 3 | U6: k | V6: KL-% | W6: Pelinjohtaja | X6: Yleisöä
B7: 14.07. 1989 Lammi | C7: 6-7 | D7: Länsi | E7: RPL | G7: 1 | M7: 1 | W7: Gunnar Wallin | X7: 156
B8: 21.07. 1990 Hämeenlinna | C8: 8-7 | D8: Länsi | E8: RPL | I8: 1 | L8: II p | M8: 1 | P8: 1 | W8: Kari-Pekka Halonen | X8: 325
